bitfinex/quotes_ETHUSD_20250415
["timestamp","ask_amount","ask_price","bid_price","bid_amount"]
[1744734072642,5.461,1620.6,1620.4,6.93537]
[1744734072937,5.461,1620.6,1620.5,0.18567206]
[1744734073135,6.17028,1620.7,1620.4,6.93537]
[1744734073315,6.17028,1620.7,1620.5,6.1708]
[1744734073316,5.46,1620.7,1620.5,6.1708]
[1744734073511,5.46,1620.7,1620.4,6.93542]
[1744734073744,11.6302,1620.7,1620.5,0.18550108]
[1744734074150,5.46,1620.7,1620.5,6.35643108]
[1744734075147,5.46,1620.7,1620.5,0.18550108]
[1744734075348,11.63029,1620.7,1620.5,0.18550108]
[1744734075535,5.46,1620.7,1620.5,6.35630108]
[1744734075924,5.46,1620.7,1620.5,6.35631108]
[1744734076119,11.63018,1620.7,1620.5,0.18550108]
[1744734076752,6.17055,1620.6,1620.5,0.18550108]
[1744734076951,17.80055,1620.7,1620.5,0.18550108]
[1744734077854,11.63018,1620.7,1620.5,0.18550108]
[1744734078350,5.46,1620.7,1620.5,6.35636108]
[1744734078559,11.63021,1620.7,1620.5,0.18550108]
[1744734078852,11.63021,1620.7,1620.4,6.93538]
[1744734079251,11.63021,1620.7,1620.5,0.18393798]
[1744734079956,5.46,1620.7,1620.5,6.35473798]
[1744734080154,5.46,1620.7,1620.5,7.68375778]
[1744734080353,6.17055,1620.6,1620.5,0.18393798]
[1744734080554,6.17055,1620.6,1620.4,0.7642]
[1744734080757,6.17055,1620.6,1620.5,0.18393798]
[1744734081444,6.17095,1620.5,1620.3,0.781]
[1744734081826,6.17095,1620.5,1620.4,0.16809834]
[1744734082025,12.3414,1620.6,1620.4,0.16809834]
[1744734082229,14.19779,1620.6,1620.4,0.16809834]
[1744734082427,6.17113,1620.5,1620.3,0.781]
[1744734082654,6.17131,1620.4,1620.2,0.7933]
[1744734083158,6.17169,1620.3,1620.2,0.7933]
[1744734083369,6.17131,1620.4,1620.0,0.7506]
[1744734083370,6.1722,1620.2,1620.0,0.7506]
[1744734083535,11.6312,1620.2,1619.9,13.09679]
[1744734084243,5.459,1620.2,1620.0,6.17273]
[1744734084444,11.63119,1620.2,1619.9,0.7506]
[1744734084758,12.34529,1620.1,1619.8,6.17348]
[1744734084962,18.61875,1620.2,1619.9,6.17319]
[1744734085962,6.17254,1620.1,1619.8,6.17348]
[1744734086166,6.17254,1620.1,1620.0,0.16908486]
[1744734086329,6.17254,1620.1,1619.8,6.17348]
[1744734086661,12.44648,1620.2,1619.9,6.34256908]
[1744734086856,6.17266,1620.1,1619.9,0.16946908]
[1744734087258,13.691108,1620.2,1619.9,12.3464]
[1744734087466,13.691108,1620.2,1620.0,0.16908486]
[1744734087670,5.459,1620.2,1620.0,7.09999486]
[1744734087859,5.459,1620.2,1620.0,13.27268486]
[1744734088367,6.17245,1620.1,1620.0,0.16908486]
[1744734088692,7.952807,1620.1,1619.8,6.93166]
[1744734088868,6.17245,1620.1,1620.0,0.17226057]
[1744734089069,11.63112,1620.2,1619.9,6.3457948]
[1744734089269,11.63112,1620.2,1620.0,0.17226057]
[1744734089481,6.17245,1620.1,1620.0,0.17226057]
[1744734089691,8.704907,1620.1,1620.0,0.17226057]
[1744734089982,2.532457,1620.1,1620.0,0.17212615]
[1744734090265,2.532457,1620.1,1619.6,13.12457]
[1744734090266,6.17287,1620.0,1619.6,13.12457]
[1744734090466,6.17322,1619.9,1619.6,0.7761]
[1744734090671,6.1736,1619.8,1619.6,0.7761]
[1744734090836,6.1736,1619.8,1619.5,6.17472]
[1744734091043,6.17398,1619.7,1619.4,13.12618]
[1744734091467,0.7739,1619.9,1619.4,0.7761]
[1744734091775,8.459,1620.2,1619.9,12.34608]
[1744734091776,5.459,1620.2,1619.9,12.34608]
[1744734092064,5.459,1620.2,1620.0,6.17282]
[1744734092268,5.459,1620.2,1619.9,12.34608]
[1744734092461,5.459,1620.2,1620.0,6.17268]
[1744734092972,5.459,1620.2,1619.9,12.34628]
[1744734093149,5.459,1620.2,1619.9,13.659738]
[1744734093352,11.63109,1620.2,1619.9,7.486598]
[1744734093551,11.63109,1620.2,1619.9,6.17311]
[1744734093778,11.63109,1620.2,1619.9,12.34619]
[1744734093958,6.17266,1620.1,1619.8,6.96182]
[1744734094341,11.63113,1620.2,1619.9,6.17308]
[1744734094969,17.80342,1620.2,1619.9,6.17308]
[1744734095184,19.661152,1620.2,1619.9,6.17308]
[1744734095474,19.661182,1620.2,1619.9,6.17308]
[1744734095668,19.661182,1620.2,1619.8,6.96181]
[1744734095869,6.17325,1619.9,1619.6,6.94244]
[1744734096071,6.17363,1619.8,1619.5,13.1174]
[1744734096275,6.17325,1619.9,1619.6,6.17431]
[1744734096474,12.34662,1619.9,1619.6,6.17431]
[1744734096885,6.17363,1619.8,1619.5,6.94276]
[1744734097180,12.34754,1619.8,1619.5,6.94276]
[1744734098179,6.17363,1619.8,1619.5,6.94276]
[1744734098346,5.448,1619.7,1619.5,6.94276]
[1744734098541,11.62212,1619.7,1619.3,6.98572]
[1744734098749,11.62212,1619.7,1619.1,13.2126]
[1744734098750,6.17523,1619.4,1619.1,13.2126]
[1744734098965,6.17523,1619.4,1619.1,13.21256]
[1744734099167,0.7698,1619.3,1619.1,0.05]
[1744734099477,11.62388,1619.2,1619.1,0.05]
[1744734099773,13.480814,1619.2,1619.1,0.05]
[1744734100175,14.242814,1619.2,1619.1,0.23311334]
[1744734101081,7.304934,1619.2,1619.1,0.23311334]
[1744734101242,13.480814,1619.2,1619.1,0.23311334]
[1744734101450,14.252314,1619.2,1619.1,0.23311334]
[1744734103486,5.448,1619.2,1619.1,0.23311334]
[1744734104275,0.808,1619.4,1619.1,0.23311334]
[1744734104276,5.449,1619.3,1619.1,0.23311334]
[1744734104487,11.6245,1619.3,1619.1,0.23311334]
[1744734106491,5.449,1619.3,1619.1,0.23311334]
[1744734107387,11.62455,1619.3,1619.1,0.23311334]
[1744734107783,17.80022,1619.3,1619.1,0.23311334]
[1744734108086,11.62455,1619.3,1619.1,0.23311334]
[1744734108292,11.6247,1619.3,1619.1,0.23311334]
[1744734108492,13.485487,1619.3,1619.1,0.23311334]
[1744734108793,6.17588,1619.2,1619.1,0.23311334]
[1744734109169,6.93418,1619.2,1619.1,0.23311334]
[1744734109563,16.03418,1619.2,1619.1,0.23311334]
[1744734109893,16.03418,1619.2,1619.1,0.05]
[1744734110095,19.6037157,1619.2,1619.1,0.05]
[1744734110295,19.6037157,1619.2,1619.1,0.24039935]
[1744734110462,19.6037157,1619.2,1619.1,0.05]
[1744734110863,16.6037157,1619.2,1619.1,0.24069285]
[1744734112798,10.5037157,1619.2,1619.1,0.24069285]
[1744734114762,10.5037157,1619.2,1619.1,0.05]
[1744734116069,10.5037157,1619.2,1619.1,0.24274799]
[1744734116895,10.5037157,1619.2,1619.1,0.05]
[1744734117400,10.5037157,1619.2,1619.1,0.24231978]
[1744734118875,1.860787,1619.3,1619.1,0.24231978]
[1744734119075,5.451,1619.2,1619.1,0.24231978]
[1744734119376,5.451,1619.2,1619.1,6.41858978]
[1744734119974,48.168,1619.5,1619.1,0.24231978]
[1744734120172,1.67202012,1619.9,1619.3,0.795]
[1744734120373,5.451,1619.8,1619.5,6.17447]
[1744734120593,6.17404,1619.7,1619.4,6.17508]
[1744734120803,11.6248,1619.8,1619.5,6.17474]
[1744734120997,5.451,1619.8,1619.6,6.36404716]
[1744734121215,5.451,1619.8,1619.5,6.36470169]
[1744734121216,13.5634892,1619.8,1619.5,6.36470169]
[1744734121399,19.7372692,1619.8,1619.6,0.18946705]
[1744734121801,19.7372692,1619.8,1619.4,12.35002]
[1744734122002,6.17408,1619.7,1619.4,6.17501]
[1744734122212,6.17408,1619.7,1619.3,6.97039]
[1744734122391,6.17408,1619.7,1619.1,9.22624]
[1744734122392,6.792068,1619.6,1619.2,6.17577]
[1744734122592,6.17487,1619.5,1619.2,6.17577]
[1744734123003,12.34988,1619.5,1619.2,6.17577]
[1744734123214,6.17487,1619.5,1619.2,6.17577]
[1744734123583,12.3505,1619.4,1619.1,7.02165]
[1744734123782,13.58555,1619.4,1619.1,7.02165]
[1744734123987,5.498,1619.3,1619.1,0.8455]
[1744734124181,6.17588,1619.2,1619.1,0.05]
[1744734124403,15.27588,1619.2,1619.1,0.05]
[1744734124712,19.377805,1619.2,1619.1,0.05]
[1744734125088,10.201925,1619.2,1619.1,0.05]
[1744734125415,5.498,1619.2,1619.1,0.05]
[1744734125710,11.67388,1619.2,1619.1,0.05]
[1744734125919,5.498,1619.2,1619.1,0.05]
[1744734126223,5.498,1619.2,1619.1,6.22627]
[1744734126418,5.498,1619.2,1619.1,6.28802949]
[1744734126621,5.498,1619.2,1619.1,8.88856695]
[1744734126781,5.498,1619.6,1619.3,6.17523]
[1744734127418,5.498,1619.6,1619.3,12.35054]
[1744734127599,5.498,1619.6,1619.4,6.1751]
[1744734127805,11.67266,1619.6,1619.3,6.17544]
[1744734128000,11.67265,1619.6,1619.3,6.17544]
[1744734128687,11.67265,1619.6,1619.3,12.35088]
[1744734129222,11.67265,1619.6,1619.3,6.17544]
[1744734129518,17.84738,1619.6,1619.2,12.35155]
[1744734129717,6.1748,1619.5,1619.1,7.02443]
[1744734130082,6.17529,1619.4,1619.1,7.02443]
[1744734130298,6.17529,1619.4,1619.1,13.20057]
[1744734130499,6.17477,1619.5,1619.2,12.35174]
[1744734130700,6.17477,1619.5,1619.2,6.17587]
[1744734130900,6.17477,1619.5,1619.2,12.35149]
[1744734131118,6.17477,1619.5,1619.2,6.17573]
[1744734131311,6.17477,1619.5,1619.3,0.15704684]
[1744734131888,8.1379678,1619.5,1619.3,0.15704684]
[1744734133219,7.282738,1619.6,1619.3,6.33227684]
[1744734133424,5.498,1619.6,1619.4,6.17501]
[1744734133619,5.498,1619.6,1619.4,7.16349946]
[1744734134023,5.498,1619.6,1619.4,13.33849946]
[1744734134191,5.498,1619.6,1619.5,6.17474]
[1744734134392,5.498,1619.6,1619.5,6.33144484]
[1744734134592,5.498,1619.6,1619.5,7.66526779]
[1744734135293,5.498,1619.6,1619.5,0.15670484]
[1744734135488,5.498,1619.6,1619.5,6.33144484]
[1744734139502,5.498,1619.6,1619.5,0.15670484]
[1744734140226,5.498,1619.6,1619.5,6.33144484]
[1744734141924,5.498,1619.6,1619.5,7.13964484]
[1744734142118,5.497,1620.0,1619.8,12.34701]
[1744734142317,5.497,1620.0,1619.8,6.98168]
[1744734142521,5.497,1620.0,1619.9,0.15100158]
[1744734143330,5.497,1620.0,1619.9,6.32422158]
[1744734143832,5.497,1620.0,1619.9,0.15100158]
[1744734145928,11.66983,1620.0,1619.9,0.15100158]
[1744734146313,13.45406,1620.0,1619.6,6.93576]
[1744734146619,17.84304,1620.0,1619.7,6.17397]
[1744734146796,17.84304,1620.0,1619.8,0.15034942]
[1744734148143,6.17322,1619.9,1619.8,0.15034942]
[1744734148305,7.00302,1619.9,1619.8,0.15034942]
[1744734148508,6.17499,1619.5,1619.2,6.97677]
[1744734148710,17.846,1619.5,1619.2,6.97677]
[1744734148913,11.67099,1619.5,1619.3,0.15234516]
[1744734149335,5.496,1619.5,1619.3,0.15234516]
[1744734149530,5.496,1619.5,1619.3,6.32767516]
[1744734149923,5.496,1619.5,1619.3,12.50307516]
[1744734150146,5.496,1619.5,1619.3,6.32767516]
[1744734150459,5.496,1619.5,1619.4,6.17512]
[1744734150658,5.496,1619.5,1619.4,7.67743266]
[1744734151752,5.496,1619.5,1619.4,7.12743266]
[1744734152230,5.496,1619.5,1619.4,10.12743266]
[1744734152431,5.5,1619.9,1619.7,6.17397]
[1744734152637,6.750274,1619.9,1619.8,0.14970167]
[1744734152946,6.750274,1619.9,1619.8,6.32330167]
[1744734153151,5.5,1619.9,1619.8,6.32330167]
[1744734157153,5.5,1619.9,1619.8,0.14970167]
[1744734157456,11.67322,1619.9,1619.8,0.14970167]
[1744734157652,5.5,1619.9,1619.8,0.14970167]
[1744734157827,5.5,1619.9,1619.7,6.17388]
[1744734158028,5.5,1619.9,1619.8,0.14882191]
[1744734160050,5.5,1619.9,1619.8,7.7693891]
[1744734160352,5.5,1619.9,1619.6,6.17424]
[1744734160553,5.5,1619.9,1619.8,0.14882191]
[1744734160733,11.67331,1619.9,1619.7,0.1492062]
[1744734160937,11.67331,1619.9,1619.8,0.14882191]
[1744734160938,12.43591,1619.9,1619.8,0.14882191]
[1744734161263,12.43591,1619.9,1619.6,6.17424]
[1744734161427,12.43591,1619.9,1619.6,12.34848]
[1744734161626,12.43591,1619.9,1619.7,0.1492062]
[1744734163269,6.2626,1619.9,1619.7,6.3231762]
[1744734163470,6.2626,1619.9,1619.7,6.3230762]
[1744734163665,6.2626,1619.9,1619.7,6.3230662]
[1744734164249,6.2626,1619.9,1619.7,12.4969262]
[1744734164673,6.2626,1619.9,1619.7,6.3230662]
[1744734164971,6.2626,1619.9,1619.7,0.1492062]
[1744734165173,12.43585,1619.9,1619.7,0.1492062]
[1744734165958,6.2626,1619.9,1619.7,6.3231162]
[1744734166560,5.5,1619.9,1619.7,7.57279182]
[1744734166864,5.5,1619.9,1619.8,6.9636]
[1744734167174,5.5,1619.9,1619.8,7.09791238]
[1744734167371,5.5,1619.9,1619.8,7.1596435]
[1744734167756,5.5,1619.9,1619.8,7.09791238]
[1744734168452,5.5,1619.9,1619.8,8.55005618]
[1744734169872,5.5,1619.9,1619.8,8.61178597]
[1744734170086,12.44252,1620.3,1620.0,6.17278]
[1744734170294,0.7939,1620.5,1620.1,0.06172148]
[1744734170616,5.5,1620.4,1620.3,6.17169]
[1744734170812,5.5,1620.4,1620.3,7.48687]
[1744734170962,5.5,1620.4,1620.3,7.61693123]
[1744734171161,6.17057,1620.6,1620.3,13.78862123]
[1744734171409,11.67057,1620.6,1620.3,6.30175123]
[1744734171775,5.5,1620.6,1620.4,6.17114]
[1744734172109,5.5,1620.6,1620.5,0.12823135]
[1744734172110,11.67065,1620.6,1620.5,0.12823135]
[1744734172268,6.17135,1620.4,1620.1,6.17241]
[1744734172473,6.92995,1620.4,1620.1,6.17241]
[1744734172693,6.92995,1620.4,1620.2,0.1298226]
[1744734172895,13.10142,1620.4,1620.1,6.17241]
[1744734173094,14.411562,1620.4,1620.3,0.12958511]
[1744734173311,6.17203,1620.3,1619.9,6.17309]
[1744734173483,6.17203,1620.3,1620.0,6.17265]
[1744734174016,6.17103,1620.5,1620.2,6.17203]
[1744734175065,6.17103,1620.5,1620.3,6.17159]
[1744734175066,5.499,1620.5,1620.3,6.17159]
[1744734175367,11.66994,1620.5,1620.2,12.34391]
[1744734175693,11.66994,1620.5,1620.2,6.17195]
[1744734175898,19.083774,1620.5,1620.2,6.17195]
[1744734176192,12.912694,1620.5,1620.2,6.17195]
[1744734176513,12.912694,1620.5,1620.3,0.12893893]
[1744734176819,5.499,1620.5,1620.3,7.12983893]
[1744734177104,5.499,1620.5,1620.3,6.30043893]
[1744734177509,5.499,1620.5,1620.3,12.47200893]
[1744734177670,5.499,1620.7,1620.5,6.17068]
[1744734177867,5.499,1620.7,1620.5,6.97478]
[1744734178079,5.499,1620.7,1620.6,0.12455528]
[1744734179478,11.66893,1620.8,1620.6,0.12455528]
[1744734179681,5.499,1620.8,1620.6,0.12455528]
[1744734179969,5.499,1620.8,1620.6,6.29495528]
[1744734180683,11.66886,1620.8,1620.6,0.12455528]
[1744734183495,17.83893,1620.8,1620.6,0.12455528]
[1744734183866,11.66886,1620.8,1620.6,0.12455528]
[1744734185711,17.83883,1620.8,1620.6,0.12455528]
[1744734186009,11.66886,1620.8,1620.6,0.12455528]
[1744734186206,0.7587,1621.0,1620.8,6.1695]
[1744734186383,6.1741568,1621.2,1620.8,6.1695]
[1744734186384,0.0057868,1621.2,1621.0,6.16884]
[1744734186580,0.0057868,1621.2,1621.1,6.16865]
[1744734186779,0.0057868,1621.2,1621.1,7.16236852]
[1744734186977,0.0057868,1621.2,1621.1,9.05069194]
[1744734187205,0.0057868,1621.2,1621.1,7.10068709]
[1744734187593,0.0057868,1621.2,1621.1,0.93203709]
[1744734187798,0.0057868,1621.2,1621.1,0.12113709]
[1744734188305,0.0057868,1621.2,1621.1,6.35146943]
[1744734188486,0.0057868,1621.2,1621.1,6.28978709]
[1744734188689,0.0057868,1621.2,1621.1,7.5356568]
[1744734190211,0.0057868,1621.2,1621.1,8.3329568]
[1744734191294,0.0057868,1621.2,1621.1,8.8829568]
[1744734191713,0.0057868,1621.2,1621.1,11.76181971]
[1744734191915,0.0057868,1621.2,1621.1,11.56181971]
[1744734193906,0.0057868,1621.2,1621.1,8.56181971]
[1744734195198,0.0057868,1621.2,1621.1,8.62349192]
[1744734196616,0.0057868,1621.2,1621.1,8.56181971]
[1744734196918,0.0057868,1621.2,1621.1,8.62348856]
[1744734197288,0.0057868,1621.2,1621.1,8.56181971]
[1744734197487,0.0057868,1621.2,1621.1,8.62348857]
[1744734200507,6.8e-06,1621.2,1621.1,11.62348857]
[1744734200811,0.55,1621.8,1621.7,6.16636]
[1744734201009,0.55,1621.8,1621.7,7.474902]
[1744734201648,0.55,1621.8,1621.7,8.024902]
[1744734202522,0.55,1621.8,1621.7,7.474902]
[1744734203325,7.50989,1621.8,1621.4,9.1674]
[1744734203505,6.16639,1621.7,1621.4,15.33478]
[1744734204248,6.16639,1621.7,1621.4,9.16739]
[1744734204403,6.16639,1621.7,1620.9,10.39897804]
[1744734204404,0.8081,1621.7,1620.6,2.09639543]
[1744734204749,0.8081,1621.0,1620.7,6.17002]
[1744734204917,6.2521,1621.0,1620.7,6.17009]
[1744734205328,6.2521,1621.0,1620.7,12.34014]
[1744734205847,12.42113,1621.0,1620.7,6.17005]
[1744734206059,12.42113,1621.0,1620.6,12.34089]
[1744734206257,12.42113,1621.0,1620.5,6.99576]
[1744734206427,6.16942,1620.9,1620.5,6.1709]
[1744734206750,6.98296,1620.8,1620.4,6.17122]
[1744734206955,6.98296,1620.8,1620.4,6.17116]
[1744734207106,6.98296,1620.8,1620.5,6.1709]
[1744734208375,13.15294,1620.8,1620.5,6.1709]
[1744734208883,0.813,1620.8,1620.5,6.17075]
[1744734209156,0.813,1620.8,1620.5,7.40495]
[1744734209867,6.9829,1620.8,1620.5,7.40495]
[1744734210365,0.813,1620.8,1620.6,6.17048]
[1744734211337,6.98293,1620.8,1620.4,6.17123]
[1744734211536,6.17018,1620.7,1620.4,6.17123]
[1744734211733,6.98293,1620.8,1620.4,6.17123]
[1744734211734,13.15293,1620.8,1620.5,6.17091]
[1744734211968,6.98293,1620.8,1620.5,6.17091]
[1744734212164,6.98293,1620.8,1620.5,6.17078]
[1744734212670,6.98293,1620.8,1620.5,12.34157]
[1744734212870,6.98293,1620.8,1620.5,6.17078]
[1744734213776,6.17029,1620.7,1620.4,6.79785433]
[1744734214646,6.17029,1620.7,1620.4,12.96906433]
[1744734214845,6.98285,1620.8,1620.5,7.46783643]
[1744734215071,6.98285,1620.8,1620.5,12.34186]
[1744734215370,0.813,1620.8,1620.6,6.17045]
[1744734215871,0.813,1620.8,1620.5,12.34186]
[1744734216174,6.9828,1620.8,1620.5,6.17093]
[1744734216392,6.9828,1620.8,1620.5,6.17082]
[1744734217054,6.9828,1620.8,1620.5,12.34165]
[1744734217776,6.9828,1620.8,1620.5,6.17082]
[1744734218580,6.9828,1620.8,1620.5,12.34164]
[1744734218894,6.9828,1620.8,1620.5,13.63846743]
[1744734219681,6.9828,1620.8,1620.5,7.46764743]
[1744734219850,6.9828,1620.8,1620.5,12.34165]
[1744734220048,0.813,1620.8,1620.6,6.17024]
[1744734220279,0.813,1620.8,1620.6,0.11863237]
[1744734220790,6.98282,1620.8,1620.6,0.11863237]
[1744734220956,0.813,1620.8,1620.6,0.11863237]
[1744734221399,0.813,1620.8,1620.6,6.28917237]
[1744734222382,0.813,1620.8,1620.6,6.28907237]
[1744734223086,6.98283,1620.8,1620.6,0.11863237]
[1744734223444,0.813,1620.8,1620.6,0.11863237]
[1744734223984,0.813,1620.8,1620.6,6.28912237]
[1744734225382,6.9829,1620.8,1620.6,0.11863237]
[1744734225680,6.17017,1620.7,1620.6,0.11863237]
[1744734225847,6.17017,1620.7,1620.4,6.17121]
[1744734226052,12.34047,1620.7,1620.5,0.12119005]
[1744734226253,6.17055,1620.6,1620.5,0.12119005]
[1744734226452,6.93535,1620.6,1620.3,6.17159]
[1744734226656,6.93535,1620.6,1620.4,0.12208725]
[1744734227716,13.10606,1620.6,1620.4,0.12208725]
[1744734228795,6.93535,1620.6,1620.4,0.12208725]
[1744734230097,0.7648,1620.6,1620.4,6.29330725]
[1744734230260,6.93545,1620.6,1620.4,0.12208725]
[1744734230877,5.469,1620.7,1620.6,6.17055]
[1744734231073,5.469,1620.7,1620.6,6.29198622]
[1744734231360,12.2683,1621.2,1620.6,6.29198622]
[1744734231361,48.94471455,1621.5,1620.6,6.84198622]
[1744734231560,5.469,1621.1,1620.9,6.16931]
[1744734231802,5.469,1621.1,1621.0,6.16903]
[1744734231998,5.469,1621.1,1621.0,6.28775953]
[1744734232568,5.469,1621.1,1621.0,0.11872953]
[1744734233159,5.469,1621.1,1621.0,6.28775953]
[1744734234196,5.469,1621.1,1621.0,8.33266148]
[1744734234493,48.8774,1621.5,1621.1,6.1683]
[1744734234494,60.51368,1621.5,1621.1,6.1683]
[1744734234794,66.68101,1621.5,1621.2,6.16825]
[1744734234987,66.68099,1621.5,1621.2,6.16825]
[1744734235808,6.16754,1621.4,1621.1,6.1683]
[1744734236171,12.33525,1621.4,1621.2,0.11700343]
[1744734236699,6.16788,1621.3,1621.2,0.11700343]
[1744734236890,6.16788,1621.3,1621.0,6.16891]
[1744734237205,6.16788,1621.3,1621.1,0.11738715]
[1744734237909,12.33592,1621.3,1621.1,0.11738715]
[1744734238603,0.7651,1621.2,1621.1,0.11738715]
[1744734238907,6.16877,1621.1,1620.8,6.16966]
[1744734239268,6.16951,1620.9,1620.6,6.17048]
[1744734239506,6.16987,1620.8,1620.5,13.14699]
[1744734239668,6.2331,1621.0,1620.4,7.41772473]
[1744734239669,6.17018,1620.7,1620.4,7.41772473]
[1744734239869,6.93528,1620.7,1620.4,13.58891473]
[1744734240101,0.7651,1620.7,1620.5,6.17093]
[1744734240302,6.96272,1620.9,1620.6,6.17044]
[1744734240485,0.7932,1620.9,1620.5,7.52978447]
[1744734240694,12.34011,1620.8,1620.5,6.17092]
[1744734240907,0.7932,1620.9,1620.4,6.17131]
[1744734240908,6.96266,1620.9,1620.4,6.17131]
[1744734241206,6.96266,1620.9,1620.6,6.1704]
[1744734242092,13.13223,1620.9,1620.6,6.1704]
[1744734242499,6.16981,1620.8,1620.5,6.17082]
[1744734242697,6.16981,1620.8,1620.5,12.34164]
[1744734243199,13.13229,1620.9,1620.6,6.17048]
[1744734243576,13.13234,1620.9,1620.6,6.17048]
[1744734244399,6.16987,1620.8,1620.5,6.17082]
[1744734244607,12.33985,1620.8,1620.5,6.17082]
[1744734244812,6.16987,1620.8,1620.5,6.17082]
[1744734244968,6.16987,1620.8,1620.5,12.34162]
[1744734245267,13.13232,1620.9,1620.5,13.575782]
[1744734245475,13.13232,1620.9,1620.6,6.17048]
[1744734245673,0.7932,1620.9,1620.6,12.34084]
[1744734245901,6.96263,1620.9,1620.6,12.34084]
[1744734246218,13.1323,1620.9,1620.6,6.17042]
[1744734248416,0.7932,1620.9,1620.5,7.404982]
[1744734248580,6.1709,1620.6,1620.3,6.17156]
[1744734248915,6.92679,1620.8,1620.5,6.17093]
[1744734249120,6.92679,1620.8,1620.5,12.34186]
[1744734249277,13.09675,1620.8,1620.5,6.17093]
[1744734249481,6.17018,1620.7,1620.4,13.10098]
[1744734249682,6.9269,1620.8,1620.5,6.17089]
[1744734249909,6.9269,1620.8,1620.5,12.34162]
[1744734250215,6.97544,1620.9,1620.6,6.17042]
[1744734250590,13.14498,1620.9,1620.6,6.17042]
[1744734250919,6.97544,1620.9,1620.6,12.34086]
[1744734251215,13.14508,1620.9,1620.6,6.17042]
[1744734251598,6.16981,1620.8,1620.5,12.34176]
[1744734251775,6.16981,1620.8,1620.5,13.7828058]
[1744734252317,0.828,1620.7,1620.2,0.7578]
[1744734252506,0.828,1620.7,1620.2,6.17197]
[1744734252507,6.1711,1620.5,1620.2,6.17197]
[1744734252826,11.6171,1620.5,1620.2,12.34393]
[1744734253116,5.446,1620.5,1620.3,6.17169]
[1744734253321,5.446,1620.5,1620.4,6.17131]
[1744734253711,5.446,1620.5,1620.3,6.94006]
[1744734254085,5.446,1620.5,1620.4,6.17131]
[1744734255521,5.446,1620.9,1620.7,6.17008]
[1744734257023,11.61549,1620.9,1620.6,6.17046]
[1744734257323,17.78523,1620.9,1620.6,6.17046]
[1744734258120,11.61549,1620.9,1620.6,6.17046]
[1744734258325,11.61549,1620.9,1620.4,6.95418]
[1744734258326,5.446,1620.9,1620.4,6.95418]
[1744734258521,11.61547,1620.9,1620.5,6.17081]
[1744734258686,6.16993,1620.8,1620.5,12.34163]
[1744734258893,6.16993,1620.8,1620.5,6.17081]
[1744734259596,6.16993,1620.8,1620.5,12.34162]
[1744734259796,11.6155,1620.9,1620.6,6.17038]
[1744734260022,5.446,1620.9,1620.6,6.17055]
[1744734260208,5.446,1620.9,1620.6,12.3411]
[1744734260636,5.446,1620.9,1620.7,6.17006]
[1744734261011,5.446,1620.9,1620.8,6.16979]
[1744734262205,6.16837,1621.2,1620.7,2.000261]
[1744734262410,11.61437,1621.2,1620.9,6.16926]
[1744734262836,5.446,1621.2,1620.8,6.16979]
[1744734263149,5.446,1621.2,1621.0,12.33766]
[1744734263328,5.446,1621.2,1621.0,1.310386]
[1744734263641,6.9407,1621.3,1621.0,6.16892]
[1744734263826,6.16752,1621.4,1621.1,6.16831]
[1744734263827,11.61356,1621.4,1621.1,6.16831]
[1744734264063,5.446,1621.4,1621.1,12.33677]
[1744734264242,5.446,1621.4,1621.2,6.16821]
[1744734264416,5.446,1621.4,1621.2,12.33637]
[1744734264741,5.446,1621.4,1621.2,7.401777]
[1744734264942,5.446,1621.4,1621.2,6.16814]
[1744734265539,11.61368,1621.4,1621.0,6.16895]
[1744734265741,6.16814,1621.3,1621.0,12.33787]
[1744734265910,6.16814,1621.3,1621.0,6.16892]
[1744734266311,12.33628,1621.3,1621.0,6.16892]
[1744734266515,0.8285,1621.2,1620.8,6.16973]
[1744734266712,6.1691,1621.0,1620.7,12.34013]
[1744734267147,12.33832,1621.0,1620.7,6.17006]
[1744734267413,6.1691,1621.0,1620.7,6.17006]
[1744734267616,0.8285,1620.9,1620.6,12.34089]
[1744734267827,0.8285,1620.9,1620.7,6.17015]
[1744734268335,0.8285,1620.9,1620.7,12.3402]
[1744734268547,0.8285,1620.9,1620.7,6.17005]
[1744734271443,0.8285,1620.9,1620.6,7.6148342]
[1744734271444,6.99792,1620.9,1620.6,7.6148342]
[1744734271625,6.99792,1620.9,1620.6,13.7852642]
[1744734271827,6.99792,1620.9,1620.6,13.7851942]
[1744734272026,13.16766,1620.9,1620.6,6.17043]
[1744734272348,6.16979,1620.8,1620.5,12.3417]
[1744734273259,0.8285,1620.9,1620.3,0.8218]
[1744734273443,6.17067,1620.6,1620.3,6.17157]
[1744734273626,12.40774,1620.5,1620.3,1.316532]
[1744734273827,18.5788,1620.5,1620.2,6.17195]
[1744734274021,18.5788,1620.5,1620.1,6.1724]
[1744734274022,12.40782,1620.5,1620.1,6.17236]
[1744734274218,18.57898,1620.5,1620.2,6.17207]
[1744734275823,18.57898,1620.5,1620.1,6.17235]
[1744734275824,6.1714,1620.4,1620.1,6.17235]
[1744734276025,6.2368,1620.5,1620.2,6.17196]
[1744734276218,6.2368,1620.5,1620.3,6.17166]
[1744734276419,5.445,1620.5,1620.3,6.17166]
[1744734276656,5.445,1620.5,1620.3,6.94266]
[1744734276862,5.445,1620.5,1620.3,6.17166]
[1744734277362,11.61593,1620.5,1620.2,13.10442]
[1744734277659,11.61593,1620.5,1620.2,8.3128435]
[1744734277868,11.61593,1620.5,1620.2,1.3803835]
[1744734278033,6.17132,1620.4,1620.2,1.3803835]